Cogmind - Beta 17 @@@ ROGUE MODE // 2026.07.21 @ 13:23:04 Player: Cinder Result: Destroyed by S-10 Pest with Light Assault Rifle Performance ------------- Evolutions (0) 0 Regions Visited (1) 200 Robots Destroyed (1) 5 Value Destroyed (10) 10 Prototype IDs (0) 0 Alien Tech Used (0) 0 Bonus (0) 0 TOTAL SCORE: 215 Bonus ------- None Cogmind --------- Core Integrity 0/250 Matter 290/300 Energy 84/100 System Corruption 0% Temperature Cool (0) Movement Flying (40) Location -10/Materials Parts ------- > --- POWER (1) -------- (None) > --- PROPULSION (2) --- Flight Unit > --- UTILITY (2) ------ ECM Suite > --- WEAPON (2) ------- Small Laser > --- INVENTORY (5) ---- Light Ion Engine Small Battery (100) Peak State ------------ > --- POWER ------------ Light Ion Engine > --- PROPULSION ------- (None) > --- UTILITY ---------- (None) > --- WEAPON ----------- Small Laser Small Laser > --- INVENTORY -------- (None) [Rating: 3] Favorites ----------- Power Light Ion Engine Engine Light Ion Engine Propulsion Flight Unit Flight Unit Flight Unit Utility ECM Suite Device ECM Suite Weapon Small Laser Energy Gun Small Laser Build | -11 -10 ------- Run | Yrd Mat Slots Evolved . | . . Power . | . . Propulsion . | . . Utility . | . . Weapon . | . . Parts Attached 5 | 3 2 Power 1 | 1 . Engine 1 | 1 . Core . | . . Reactor . | . . Propulsion 1 | . 1 Treads . | . . Leg . | . . Wheel . | . . Hover . | . . Flight 1 | . 1 Utility 1 | . 1 Device 1 | . 1 Storage . | . . Processor . | . . Hackware . | . . Protection . | . . Artifact . | . . Weapon 2 | 2 . Energy Gun 2 | 2 . Energy Cannon . | . . Ballistic Gun . | . . Ballistic Cannon . | . . Launcher . | . . Special Weapon . | . . Impact Weapon . | . . Slashing Weapon . | . . Piercing Weapon . | . . Special Melee Weapon . | . . Unidentified Prototypes . | . . Parts Lost 1 | . 1 Power . | . . Propulsion . | . . Utility . | . . Weapon 1 | . 1 Highest Loss Streak 1 | . 1 To Critical Strikes . | . . Average Backups 1 | . 2 Power . | . 1 Propulsion . | . . Utility . | . . Weapon . | . . Tool/Special . | . . Unused Backups 1 | . 1 Power . | . . Propulsion . | . . Utility 1 | . 1 Weapon . | . . Tool/Special . | . . Average Slot Usage (%) 28 | . 28 Device 10 | . 10 Energy Gun 17 | . 17 Peak Build Rating 3 | 3 3 Average Rating 1 | 1 2 On Entrance 1 | . 2 Avg Prop Armor Cover (%) . | . . Naked Turns . | . . Heaviest Build 3 | 2 3 Greatest Support 3 | 3 3 Greatest Overweight (x) . | . . Average Overweight (x) . | . . Largest Inventory Capacity 5 | 5 5 Average Capacity 5 | 5 5 Most Carried 3 | 1 3 Average Carried 1 | . 2 Final Capacity 5 | 5 5 Final Carried 2 | 1 2 Class Distribution -------------------- 100% | Mutant Dominant Class ---------------- Mutant | -10/Materials Resources | -11 -10 ----------- Run | Yrd Mat Matter Collected 245 | 230 15 Remotely . | . . Salvage Created 17 | . 17 Parts 2 | . 2 Haulers Intercepted . | . . Recyclers Shooed . | . . Parts Field Recycled . | . . Retrieved Matter . | . . Parts Self-Destructed . | . . Prevented . | . . Parts Restored . | . . Kills | -11 -10 ------- Run | Yrd Mat Combat Hostiles Destroyed 1 | . 1 Guns 1 | . 1 Classes Destroyed 1 | . 1 Swarmer 1 | . 1 Best Kill Streak 1 | . 1 Combat Bots Only 1 | . 1 Max Kills in Single Turn 1 | . 1 Gunslinging . | . . Exploded . | . . Melee . | . . Uniques/NPCs Destroyed . | . . Combat | -11 -10 -------- Run | Yrd Mat Hostile Shots Fired 20 | . 20 Missed 3 | . 3 Hits 17 | . 17 Projectile 17 | . 17 Damage Taken 366 | . 366 Core 250 | . 250 Absorbed by Shields . | . . Core Remaining (%) 100 | 100 . Volleys Fired 8 | . 8 Largest 1 | . 1 Hottest 40 | . 40 Shots Fired 8 | . 8 Gun 8 | . 8 Cannon . | . . Launcher . | . . Special . | . . Kinetic . | . . Thermal 8 | . 8 Explosive . | . . Electromagnetic . | . . Robot Hit Streak 2 | . 2 Robot Miss Streak 2 | . 2 Penetration Max . | . . Secondary Targets . | . . Shots Hit Robots 5 | . 5 Core Hits 2 | . 2 Critical Kills . | . . Critical Parts Destroyed . | . . Critical Strikes . | . . Melee Attacks . | . . Impact . | . . Slashing . | . . Piercing . | . . Sneak Attacks . | . . Combat Hostiles . | . . Follow-up Attacks . | . . Damage Inflicted 55 | . 55 Guns 55 | . 55 Cannons . | . . Explosions . | . . Melee . | . . Ramming . | . . Kinetic . | . . Thermal 55 | . 55 Explosive . | . . Electromagnetic . | . . Impact . | . . Slashing . | . . Piercing . | . . Highest Corruption . | . . Average Corruption . | . . Corruption Purged . | . . Corruption Blocked . | . . Overload Shots . | . . Overflow Damage . | . . Projectiles . | . . Explosions . | . . Melee . | . . Knockbacks . | . . Impact . | . . Kinetic . | . . Secondary . | . . Self-Inflicted Damage . | . . Shots . | . . Rammed . | . . Targets Rammed . | . . Kicked . | . . Crushed . | . . Highest Temperature 11 | . 11 Average Temperature 11 | . 11 Received Heat Transfer . | . . Siege Activations . | . . Martial Activations . | . . Shielding Activations . | . . Robots Disrupted . | . . Combat Hostiles . | . . Robots Corrupted . | . . Combat Hostiles . | . . Parts Fried . | . . Impact Corruptions . | . . Robots Melted . | . . Combat Hostiles . | . . Parts Melted . | . . Heat Transferred 125 | . 125 Parts Sabotaged . | . . Parts Stolen . | . . Parts Stripped . | . . Power Chain Reactions . | . . Alert | -11 -10 ------- Run | Yrd Mat Maximum Alert Level . | . . Low Security (%) 100 | 100 100 Level 1 . | . . Level 2 . | . . Level 3 . | . . Level 4 . | . . Level 5 . | . . High Security . | . . Max Security . | . . Peak Influence 30 | . 30 Initial . | . . Average 1 | . 2 Influence Increases 36 | . 36 Destroy 0b10 Robot/C 20 | . 20 Destroy Leader 10 | . 10 Successful Hack 6 | . 6 Influence Decreases 6 | . 6 Time Decay 6 | . 6 Squads Dispatched . | . . Investigation . | . . Extermination . | . . Reinforcement . | . . Assault . | . . Garrison . | . . Intercept . | . . Searches Triggered . | . . Construction Impeded . | . . Haulers Reinforced . | . . Active Scanning Responses . | . . Cargo Convoy Interrupts . | . . Stealth | -11 -10 --------- Run | Yrd Mat Distress Signals . | . . Communications Jammed . | . . Distress Signals . | . . Times Spotted 4 | . 4 Peak Tracking Total 4 | . 4 Tactical Retreats . | . . Traps | -11 -10 ------- Run | Yrd Mat Traps Triggered 1 | . 1 Indirectly . | . . Trap Hack Attempts . | . . Triggered . | . . Disarmed . | . . Reprogrammed . | . . Reused . | . . Traps Extracted . | . . Installed . | . . Triggered . | . . Machines | -11 -10 ---------- Run | Yrd Mat Machines Disabled . | . . Max in Single Turn . | . . Machines Repaired . | . . Machines Dismantled . | . . Machines Sabotaged . | . . Overloaded Fab Kills . | . . Hacking | -11 -10 --------- Run | Yrd Mat Machines Accessed 2 | . 2 Terminals 2 | . 2 Fabricators . | . . Repair Stations . | . . Recycling Units . | . . Scanalyzers . | . . Garrison Access . | . . Total Hacks 4 | . 4 Successful 2 | . 2 Failed 2 | . 2 Catastrophic 1 | . 1 Database Lockouts . | . . Manual 4 | . 4 Terminals 4 | . 4 Fabricators . | . . Repair Stations . | . . Recycling Units . | . . Scanalyzers . | . . Garrison Access . | . . Terminal Hacks 1 | . 1 Robot Analysis 1 | . 1 Fabricator Hacks . | . . Repair Station Hacks . | . . Recycling Unit Hacks . | . . Scanalyzer . | . . Garrison Access Hacks . | . . Unauthorized Hacks 1 | . 1 Terminals 1 | . 1 Botnet 1 | . 1 Fabricators . | . . Repair Stations . | . . Recycling Units . | . . Scanalyzers . | . . Garrison Access . | . . Data Cores Recovered . | . . Used . | . . Hacking Detections 1 | . 1 Full Trace Events . | . . Feedback Events . | . . Feedback Blocked . | . . Robot Schematics Acquired . | . . Robots Built . | . . Authchips . | . . Time . | . . Total Robot Build Rating . | . . Part Schematics Acquired . | . . Parts Built . | . . Authchips . | . . Time . | . . Total Part Build Rating . | . . Part Studies Acquired . | . . Parts Repaired . | . . Time . | . . Parts Recycled . | . . Recycled Matter . | . . Retrieved Matter . | . . Retrieved Components . | . . Parts Scanalyzed . | . . Part Schematics Acquired . | . . Parts Damaged . | . . Bothacking | -11 -10 ------------ Run | Yrd Mat Used RIF Installer . | . . Robots Hacked . | . . Non-combat . | . . Combat . | . . Robot Hacks Applied . | . . Relay Couplers Released . | . . Fabnet Peak Effective % . | . . Robots Rewired . | . . Allies Hacked . | . . Hacks Repelled . | . . Allies | -11 -10 -------- Run | Yrd Mat Total Allies . | . . Largest Group . | . . Highest-Rated Group . | . . Highest-Rated Ally . | . . Total Orders . | . . Ally Attacks . | . . Total Damage . | . . Kills . | . . Allies Corrupted . | . . Allies Melted . | . . Intel | -11 -10 ------- Run | Yrd Mat Active Infowar (turns) 1 | . 1 ECM 1 | . 1 Robot Analysis Total 1 | . 1 Derelict Logs Recovered . | . . Drone Launches . | . . Drone Recoveries . | . . Exploration | -11 -10 ------------- Run | Yrd Mat Turns Passed 102 | 26 76 Spaces Moved 139 | 42 97 Core 139 | 42 97 Treads . | . . Legs . | . . Wheels . | . . Hover . | . . Flight . | . . Fastest Speed 50 | 50 50 Average Speed 50 | 50 50 Slowest Speed 50 | 50 50 Overloaded Moves . | . . Propulsion Burnouts . | . . Robots Hopped . | . . Potential Cave-ins . | . . Cave-ins Triggered . | . . Exploration Rate (%) 13 | 3 24 Regions Visited 1 Branch Regions . Pre-discovered Areas . | . . Known Exits Taken . | . . Unknown Exits Taken 1 | 1 . Scrap Searched . | . . Spaces Dug . | . . Terrain Destroyed . | . . Melee . | . . Projectile . | . . AOE . | . . Terrain Rammed . | . . Walls Destroyed . | . . Machines Disabled . | . . Actions | -11 -10 --------- Run | Yrd Mat Total 161 | 45 116 Wait 6 | . 6 Move 138 | 41 97 Hop . | . . Pick Up 1 | . 1 Fast Attach 5 | 3 2 Attach 1 | . 1 Detach 2 | 1 1 Swap . | . . Drop . | . . Fire 8 | . 8 Melee . | . . Ram . | . . Kick . | . . Crush . | . . Escape Stasis . | . . Rewire . | . . Trap . | . . Miscellaneous . | . . Route ------- -11/Scrapyard -10/Materials (discovered 1 exit: [*Min]) History --------- Turn | Location | Event 2 | -11/Scrapyard | Met Revision 17 3 | -11/Scrapyard | Discovered new exit (range 16) 27 | -11/Scrapyard | Entered Materials 76 | -10/Materials | Discovered new exit (range 11) 78 | -10/Materials | Core integrity fell below 50% 98 | -10/Materials | Core integrity fell below 20% 103 | -10/Materials | Destroyed by S-10 Pest with Light Assault Rifle Last Messages --------------- 00052_ Acquired Sml. Battery. 00055_ Connecting with Recycling Unit... 00076_ EXIT=FOUND 00077_ Connecting with Terminal... 00077_ Triggered EMP Trap. 00077_ A bubble of electromagnetic force engulfs the area. 00077_ Terminal disabled. 00077_ EMP Trap short circuited. 00077_ A bubble of electromagnetic force engulfs the area. 00077_ Fusion Modulator explodes. 00077_ R-06 Scavenger destroyed. 00077_ Sml. Laser destroyed. 00077_ Fusion Modulator explodes. 00077_ U-05 Engineer destroyed. 00077_ T-07 Excavator destroyed. 00077_ U-05 Engineer destroyed. 00099_ S-10 Pest destroyed. 00101_ Acquired 15 matter. 00102_ K-01 Serf collects debris. 00102_ Acquired Flight Unit. Map ----- +----------------------------------------------------+ | ?????######### ##???????????????????? | | ?????# """ # ##???????????????????? | | ?????# "R" " "#???????????????????? | | ?????# " " " "#???????????????????? | | ?????# " "#???????????????????? | | ?????# " % #???????????????????? | | ?????# """ " ##??????????????????? | | ?????# """ # " #??????????????????? | | ?????# """ # " #??????????????????? | | ?????# #" " #??????????????????? | | ?????# "" "##??????????????????? | | ?????# "" k; #??????????????????? | | ?????####+##+"" ;##??????????????????? | | ????????# ;#???????????????????? | | ??????### " ##???????????????????? | | ?????+ #????????????????????? | | ?????#########" #????????????????????? | | ?????????????###"""""#### #????????????????????? | | ?????????????# ! ###### ##???????????????????? | | ?????????????# #?#" r #???????????????????? | | ?????????????# " #?#"" #???????????????????? | | ?????????????# "" #?#!! #???????????????????? | | ?????????????# "" #?#"" < #???????????????????? | | ?????????????# """ #?#!! #???????????????????? | | ?????????????# "" #?#""ss #???????????????????? | | ?????????????# """ #?#" %@ #???????????????????? | | ?????????????# ??? #?#### ##???????????????????? | | ?????????????# ??? #????# #????????????????????? | | ?????????????#???? +????a +????????????????????? | | ???????????????????#???? #????????????????????? | | ???????????????????????? #????????????????????? | | ???????????????????????? #????????????????????? | | ??????????????????????? #????????????????????? | | ??????????????????????? #????????????????????? | | ??????????????????????? T #????????????????????? | | ??????????????????????? #????????????????????? | | ?????????????????????? #????????????????????? | | ?????????????????????? #????????????????????? | | ?????????????????????? #????????????????????? | | ?????????????????????? ? #????????????????????? | | ??????????????????????? k? ?????????????????????? | | ?????????????????????????????????????????????????? | | ?????????????????????????????????????????????????? | | ?????????????????????????????????????????????????? | | ?????????????????????????????????????????????????? | | ?????????????????????????????????????????????????? | | ?????????????????????????????????????????????????? | | ?????????????????????????????????????????????????? | | ?????????????????????????????????????????????????? | | ?????????????????????????????????????????????????? | +----------------------------------------------------+ Best States ------------- Heat Dissipation 25 Energy Generation 5 Energy Capacity 100 Matter Stores 300 Matter Capacity 300 Sight Range 16 Terrain Scan Density 10 Evasion (%) 50 Item Schematics ----------------- None Robot Schematics ------------------ None Fabricated ------------ Nothing Repaired ---------- Nothing Studied --------- None Alien Tech Used ----------------- None Achievements -------------- None Challenges ------------ None Game ------ Seed EtherialArmorCoupler Manual? 0 Play Time 00:04:09 Cumulative 193.4 hours Start 2026.07.21 @ 13:20:37 End 2026.07.21 @ 13:23:04 Sessions 1 Manual Loads 0 Difficulty Rogue Special Mode None Game No. 257 Rogue 257 Adventurer 0 Explorer 0 Win Type - Total 4 Types 4/0/0/0/0/0/0/0/0/0 Lore% 78 Gallery% 59 Achievement% 47 Wizard Run 0 Options --------- Layout 0 ASCII 0 Keyboard 0 Movement Numpad Keybinds 0 Fullscreen 1 Font 18/Terminus Map View 76x50 Zoom Use 0% Tactical HUD 1 Map Filters NONE Filters NONE Steam 1 RUN: b497db12-00f4-4a90-abc2-ecf69700806b